[Event "51st La Roda Open 2025"]
[Site "La Roda"]
[Date "2025.04.17"]
[Round "5.9"]
[White "Centron Antuna, Daniel"]
[Black "Vila Dupla, Aurelio"]
[Result "1-0"]
[Annotator "RC"]
[ECO "B22"]
[WhiteElo "2299"]
[BlackElo "2055"]
[PlyCount "99"]
[EventDate "2025.04.15"]
[EventType "swiss"]
[EventCountry "ESP"]
[SourceTitle "playchess.com"]
[Source "ChessBase"]
[SourceQuality "1"]
[TimeControl "5400+30"]

1. e4 {[%emt 0:00:04]} c5 {[%emt 0:00:07]} 2. c3 {[%emt 0:00:06]} d5 {[%emt 0:00:12]} 3. exd5 {[%emt 0:00:07]} Qxd5 {[%emt 0:00:02]} 4. d4 {[%emt 0:00:08]} Nf6 {[%emt 0:01:32]} 5. Nf3 {[%emt 0:00:19]} Bg4 {[%emt 0:00:07]} 6. dxc5 {[%emt 0:00:19]} Qxd1+ {[%emt 0:00:08]} 7. Kxd1 {[%emt 0:00:06]} Nc6 {[%emt 0:00:05]} 8. b4 {[%emt 0:00:07]} a5 {[%emt 0:02:22]} 9. b5 {[%emt 0:04:02]} Ne5 {[%emt 0:00:18]} 10. Be2 {[%emt 0:03:05]} Nxf3 {[%emt 0:00:06]} 11. gxf3 {[%emt 0:00:27]} Bf5 {[%emt 0:00:05]} 12. Na3 {[%emt 0:24:35]} e6 {[%emt 0:14:52]} 13. c6 {[%emt 0:03:34]} bxc6 {[%emt 0:02:00]} 14. bxc6 {[%emt 0:00:32]} Bc5 {[%emt 0:02:02]} 15. Nb5 {[%emt 0:02:59]} O-O {[%emt 0:15:11]} 16. Be3 {[%emt 0:01:14]} Rfd8+ {[%emt 0:02:12]} 17. Ke1 {[%emt 0:00:33]} Bxe3 {[%emt 0:04:21]} 18. fxe3 {[%emt 0:00:18]} Bc2 {[%emt 0:06:27]} 19. a4 {[%emt 0:04:34]} e5 {[%emt 0:05:07]} 20. Kf2 {[%emt 0:02:52]} Rac8 {[%emt 0:07:43]} 21. c7 {[%emt 0:01:46]} Rd7 {[%emt 0:02:09]} 22. e4 {[%emt 0:05:31]} Ne8 {[%emt 0:12:18]} 23. Rhc1 {[%emt 0:02:02]} Bb3 {[%emt 0:01:20]} 24. c4 {[%emt 0:00:35]} Nxc7 {[%emt 0:00:18]} 25. Nxc7 {[%emt 0:00:27]} Rdxc7 {[%emt 0:21:56]} 26. Rc3 {[%emt 0:00:17]} Rb8 {[%emt 0:00:00]} 27. Ra3 {[%emt 0:07:18]} Rcb7 {[%emt 0:00:00]} 28. c5 {[%emt 0:00:53]} Be6 {[%emt 0:00:00]} 29. c6 {[%emt 0:01:14]} Rc7 {[%emt 0:00:00]} 30. Rc5 {[%emt 0:00:27]} Ra8 {[%emt 0:00:00]} 31. Rac3 {[%emt 0:01:25]} f6 {[%emt 0:00:00]} 32. Rb5 {[%emt 0:00:42]} Raa7 {[%emt 0:00:00]} 33. Rb6 {[%emt 0:01:30]} Kf8 {[%emt 0:00:00]} 34. Ba6 {[%emt 0:01:10]} Ke7 {[%emt 0:00:00]} 35. Bb7 {[%emt 0:01:10]} Kd6 {[%emt 0:00:00]} 36. Rd3+ {[%emt 0:00:42]} Ke7 {[%emt 0:00:00]} 37. Ke3 {[%emt 0:02:46]} Bc8 {[%emt 0:00:00]} 38. Bxc8 {[%emt 0:03:13]} Rxc8 {[%emt 0:00:00]} 39. Rd5 {[%emt 0:00:07]} Rac7 {[%emt 0:00:00]} 40. Rxa5 {[%emt 0:00:29]} Rxc6 {[%emt 0:01:04]} 41. Rxc6 {[%emt 0:00:08]} Rxc6 {[%emt 0:00:01]} 42. Ra7+ {[%emt 0:00:08]} Kf8 {[%emt 0:00:10]} 43. Kd3 {[%emt 0:00:46]} h5 {[%emt 0:00:15]} 44. a5 {[%emt 0:00:42]} Kg8 {[%emt 0:00:26]} 45. Rb7 {[%emt 0:00:33]} Ra6 {[%emt 0:03:59]} 46. Rb5 {[%emt 0:00:38]} g5 {[%emt 0:00:43]} 47. Kc4 {[%emt 0:00:25]} Kf7 {[%emt 0:00:29]} 48. Rb7+ {[%emt 0:00:39]} Kg6 {[%emt 0:00:04]} 49. Kb5 {[%emt 0:00:05]} Ra8 {[%emt 0:00:25]} 50. a6 {[%emt 0:01:55]} 1-0

[Event "51st La Roda Open 2025"]
[Site "La Roda"]
[Date "2025.04.17"]
[Round "5.10"]
[White "Fernandez Cano, Victor"]
[Black "Goncalves, Samuel Jesus P"]
[Result "0-1"]
[Annotator "RC"]
[ECO "D00"]
[WhiteElo "2037"]
[BlackElo "2248"]
[PlyCount "132"]
[EventDate "2025.04.15"]
[EventType "swiss"]
[EventCountry "ESP"]
[SourceTitle "playchess.com"]
[Source "ChessBase"]
[SourceQuality "1"]
[TimeControl "5400+30"]

1. d4 {[%emt 0:00:03]} Nf6 {[%emt 0:00:06]} 2. Nf3 {[%emt 0:00:03]} g6 {[%emt 0:00:09]} 3. Nc3 {[%emt 0:01:19]} d5 {[%emt 0:00:07]} 4. Bf4 {[%emt 0:00:05]} Bg7 {[%emt 0:00:08]} 5. Nb5 {[%emt 0:00:38]} Na6 {[%emt 0:00:07]} 6. h3 {[%emt 0:01:34]} Ne4 {[%emt 0:07:32]} 7. e3 {[%emt 0:08:56]} c6 {[%emt 0:00:37]} 8. Na3 {[%emt 0:00:02]} O-O {[%emt 0:03:21]} 9. Be2 {[%emt 0:02:51]} Qb6 {[%emt 0:05:22]} 10. Rb1 {[%emt 0:02:54]} Qb4+ {[%emt 0:01:06]} 11. c3 {[%emt 0:32:12]} Nxc3 {[%emt 0:00:56]} 12. Nc2 {[%emt 0:00:01]} Nxd1+ {[%emt 0:00:09]} 13. Nxb4 {[%emt 0:00:04]} Nxe3 {[%emt 0:02:21]} 14. fxe3 {[%emt 0:02:45]} Nxb4 {[%emt 0:00:14]} 15. a3 {[%emt 0:00:02]} Bf5 {[%emt 0:02:14]} 16. Rd1 {[%emt 0:00:02]} Na6 {[%emt 0:00:59]} 17. Bxa6 {[%emt 0:00:13]} bxa6 {[%emt 0:00:01]} 18. Rc1 {[%emt 0:00:57]} Rac8 {[%emt 0:01:12]} 19. Ne5 {[%emt 0:02:26]} c5 {[%emt 0:03:22]} 20. Rxc5 {[%emt 0:04:09]} Rxc5 {[%emt 0:00:22]} 21. dxc5 {[%emt 0:00:02]} Rc8 {[%emt 0:00:30]} 22. b4 {[%emt 0:00:02]} f6 {[%emt 0:00:07]} 23. Nf3 {[%emt 0:00:24]} e5 {[%emt 0:00:04]} 24. Bg3 {[%emt 0:00:29]} a5 {[%emt 0:00:55]} 25. Ke2 {[%emt 0:02:09]} Bf8 {[%emt 0:05:25]} 26. Ra1 {[%emt 0:00:32]} Bd7 {[%emt 0:06:02]} 27. Be1 {[%emt 0:02:00]} Rb8 {[%emt 0:04:49]} 28. Bc3 {[%emt 0:01:12]} Kf7 {[%emt 0:02:29]} 29. Kf2 {[%emt 0:01:13]} Ke6 {[%emt 0:04:40]} 30. Nd2 {[%emt 0:00:05]} Ba4 {[%emt 0:01:59]} 31. Nf3 {[%emt 0:00:59]} Be7 {[%emt 0:03:00]} 32. Ke2 {[%emt 0:00:48]} Bd8 {[%emt 0:03:34]} 33. Ke1 {[%emt 0:01:28]} Bc2 {[%emt 0:07:12]} 34. Kf2 {[%emt 0:01:27]} a6 {[%emt 0:02:13]} 35. Ra2 {[%emt 0:01:02]} Ba4 {[%emt 0:00:40]} 36. Ra1 {[%emt 0:00:17]} Bc6 {[%emt 0:08:42]} 37. Ra2 {[%emt 0:01:40]} Rb5 {[%emt 0:01:25]} 38. Bd2 {[%emt 0:01:47]} h6 {[%emt 0:05:36]} 39. Ng1 {[%emt 0:01:50]} f5 {[%emt 0:01:28]} 40. Ne2 {[%emt 0:00:16]} g5 {[%emt 0:00:25]} 41. g4 {[%emt 0:30:02]} Rb7 {[%emt 0:01:42]} 42. gxf5+ {[%emt 0:00:00]} Kxf5 {[%emt 0:00:09]} 43. Ng3+ {[%emt 0:00:00]} Ke6 {[%emt 0:00:03]} 44. Ra1 {[%emt 0:00:00]} Rf7+ {[%emt 0:03:12]} 45. Kg2 {[%emt 0:00:00]} a4 {[%emt 0:08:48]} 46. Re1 {[%emt 0:00:00]} Be7 {[%emt 0:01:01]} 47. Bc1 {[%emt 0:00:00]} Rf8 {[%emt 0:00:59]} 48. Bd2 {[%emt 0:00:00]} a5 {[%emt 0:00:42]} 49. Nh5 {[%emt 0:00:00]} axb4 {[%emt 0:00:55]} 50. axb4 {[%emt 0:00:00]} a3 {[%emt 0:00:27]} 51. Ng7+ {[%emt 0:00:00]} Kf6 {[%emt 0:00:07]} 52. Nh5+ {[%emt 0:00:00]} Kg6 {[%emt 0:00:06]} 53. Ng3 {[%emt 0:00:00]} h5 {[%emt 0:00:59]} 54. Ra1 {[%emt 0:00:00]} d4+ {[%emt 0:01:06]} 55. Kg1 {[%emt 0:00:00]} Ra8 {[%emt 0:01:32]} 56. Bc1 {[%emt 0:00:00]} a2 {[%emt 0:00:21]} 57. Bb2 {[%emt 0:00:00]} Bf6 {[%emt 0:00:14]} 58. exd4 {[%emt 0:00:00]} exd4 {[%emt 0:00:08]} 59. Ne2 {[%emt 0:00:00]} Re8 {[%emt 0:04:57]} 60. Nxd4 {[%emt 0:00:00]} Bd5 {[%emt 0:00:01]} 61. c6 {[%emt 0:00:00]} Rb8 {[%emt 0:00:37]} 62. c7 {[%emt 0:00:00]} Rc8 {[%emt 0:00:01]} 63. Rc1 {[%emt 0:00:00]} g4 {[%emt 0:01:16]} 64. hxg4 {[%emt 0:00:00]} hxg4 {[%emt 0:00:01]} 65. b5 {[%emt 0:00:00]} g3 {[%emt 0:00:13]} 66. Rc3 {[%emt 0:00:03]} Bxd4+ {[%emt 0:00:07]} 0-1

[Event "51st La Roda Open 2025"]
[Site "La Roda"]
[Date "2025.04.17"]
[Round "5.11"]
[White "Aishwin Daniel"]
[Black "Cano Mateos, Pablo"]
[Result "1-0"]
[Annotator "RC"]
[ECO "C11"]
[WhiteElo "2236"]
[BlackElo "2086"]
[PlyCount "83"]
[EventDate "2025.04.15"]
[EventType "swiss"]
[EventCountry "ESP"]
[SourceTitle "playchess.com"]
[Source "ChessBase"]
[SourceQuality "1"]
[TimeControl "5400+30"]

1. e4 {[%emt 0:00:03]} e6 {[%emt 0:00:05]} 2. d4 {[%emt 0:00:06]} d5 {[%emt 0:00:06]} 3. Nc3 {[%emt 0:00:14]} Nf6 {[%emt 0:00:06]} 4. e5 {[%emt 0:00:07]} Nfd7 {[%emt 0:00:05]} 5. f4 {[%emt 0:00:22]} c5 {[%emt 0:00:04]} 6. Nf3 {[%emt 0:00:05]} Nc6 {[%emt 0:00:05]} 7. Be3 {[%emt 0:00:06]} a6 {[%emt 0:00:05]} 8. a3 {[%emt 0:00:05]} b5 {[%emt 0:00:15]} 9. Bd3 {[%emt 0:02:56]} Qb6 {[%emt 0:00:23]} 10. O-O {[%emt 0:06:57]} cxd4 {[%emt 0:03:00]} 11. Bf2 {[%emt 0:00:24]} Nc5 {[%emt 0:07:05]} 12. Ne2 {[%emt 0:06:43]} Nxd3 {[%emt 0:02:29]} 13. Qxd3 {[%emt 0:00:56]} b4 {[%emt 0:01:05]} 14. Nexd4 {[%emt 0:02:17]} Nxd4 {[%emt 0:05:23]} 15. Bxd4 {[%emt 0:06:33]} Bc5 {[%emt 0:00:50]} 16. Bxc5 {[%emt 0:13:19]} Qxc5+ {[%emt 0:00:32]} 17. Qd4 {[%emt 0:00:15]} Qxd4+ {[%emt 0:01:13]} 18. Nxd4 {[%emt 0:00:02]} bxa3 {[%emt 0:00:25]} 19. Rxa3 {[%emt 0:00:08]} Rb8 {[%emt 0:00:19]} 20. Rb3 {[%emt 0:04:43]} Rxb3 {[%emt 0:00:50]} 21. Nxb3 {[%emt 0:00:02]} Kd7 {[%emt 0:00:17]} 22. Kf2 {[%emt 0:01:07]} Bb7 {[%emt 0:01:34]} 23. Ke3 {[%emt 0:01:09]} Rc8 {[%emt 0:02:59]} 24. Nd4 {[%emt 0:03:27]} f6 {[%emt 0:04:10]} 25. Ra1 {[%emt 0:13:19]} Rf8 {[%emt 0:02:16]} 26. h4 {[%emt 0:03:14]} h5 {[%emt 0:03:53]} 27. g3 {[%emt 0:00:28]} Bc8 {[%emt 0:00:18]} 28. Ke2 {[%emt 0:00:54]} Bb7 {[%emt 0:02:53]} 29. Ra3 {[%emt 0:03:17]} Re8 {[%emt 0:02:03]} 30. Rb3 {[%emt 0:00:59]} Kc7 {[%emt 0:00:45]} 31. Re3 {[%emt 0:02:11]} f5 {[%emt 0:00:11]} 32. Rc3+ {[%emt 0:01:56]} Kb6 {[%emt 0:01:16]} 33. Ke3 {[%emt 0:01:11]} Re7 {[%emt 0:00:09]} 34. Rb3+ {[%emt 0:02:25]} Kc7 {[%emt 0:00:13]} 35. Kd2 {[%emt 0:00:23]} Kc8 {[%emt 0:04:42]} 36. Rb6 {[%emt 0:00:31]} Kc7 {[%emt 0:00:22]} 37. Rxe6 {[%emt 0:00:32]} Rf7 {[%emt 0:00:22]} 38. Rg6 {[%emt 0:01:02]} Bc8 {[%emt 0:00:17]} 39. Rd6 {[%emt 0:01:10]} Bb7 {[%emt 0:00:25]} 40. Ne6+ {[%emt 0:02:17]} Kb8 {[%emt 0:00:51]} 41. Nd8 {[%emt 0:00:39]} Re7 {[%emt 0:00:27]} 42. Rb6 {[%emt 0:00:47]} 1-0

[Event "51st La Roda Open 2025"]
[Site "La Roda"]
[Date "2025.04.17"]
[Round "5.12"]
[White "Del Rosario Silva, Dexnisi"]
[Black "Rumbos Garcia, Alejandro Daniel"]
[Result "1/2-1/2"]
[Annotator "RC"]
[ECO "B23"]
[WhiteElo "2013"]
[BlackElo "2178"]
[PlyCount "59"]
[EventDate "2025.04.15"]
[EventType "swiss"]
[EventCountry "ESP"]
[SourceTitle "playchess.com"]
[Source "ChessBase"]
[SourceQuality "1"]
[TimeControl "5400+30"]

1. e4 {[%emt 0:00:30]} c5 {[%emt 0:05:25]} 2. Nc3 {[%emt 0:00:00]} Nc6 {[%emt 0:00:08]} 3. Bb5 {[%emt 0:00:00]} Nd4 {[%emt 0:00:22]} 4. Nf3 {[%emt 0:00:04]} a6 {[%emt 0:00:04]} 5. Bd3 {[%emt 0:00:04]} Nc6 {[%emt 0:00:06]} 6. O-O {[%emt 0:00:12]} e5 {[%emt 0:00:05]} 7. a4 {[%emt 0:01:51]} Nf6 {[%emt 0:00:49]} 8. Bc4 {[%emt 0:00:55]} Be7 {[%emt 0:01:26]} 9. d3 {[%emt 0:01:36]} h6 {[%emt 0:03:01]} 10. Nd5 {[%emt 0:02:16]} d6 {[%emt 0:00:28]} 11. h3 {[%emt 0:00:58]} g5 {[%emt 0:07:25]} 12. c3 {[%emt 0:02:26]} Nh7 {[%emt 0:07:33]} 13. Ne3 {[%emt 0:06:02]} Nf8 {[%emt 0:04:47]} 14. d4 {[%emt 0:06:58]} exd4 {[%emt 0:29:30]} 15. cxd4 {[%emt 0:00:20]} h5 {[%emt 0:00:46]} 16. dxc5 {[%emt 0:37:07]} dxc5 {[%emt 0:00:52]} 17. Qxd8+ {[%emt 0:00:52]} Bxd8 {[%emt 0:00:10]} 18. Nf5 {[%emt 0:02:57]} f6 {[%emt 0:11:45]} 19. Nd6+ {[%emt 0:01:21]} Ke7 {[%emt 0:02:46]} 20. Nxc8+ {[%emt 0:01:34]} Rxc8 {[%emt 0:00:06]} 21. e5 {[%emt 0:00:23]} Nxe5 {[%emt 0:12:56]} 22. Nxe5 {[%emt 0:00:08]} fxe5 {[%emt 0:00:04]} 23. Bxg5+ {[%emt 0:00:04]} Kd6 {[%emt 0:00:19]} 24. Rad1+ {[%emt 0:00:14]} Kc7 {[%emt 0:00:06]} 25. Bxd8+ {[%emt 0:08:37]} Rxd8 {[%emt 0:00:04]} 26. Rxd8 {[%emt 0:00:06]} Kxd8 {[%emt 0:00:04]} 27. Re1 {[%emt 0:00:27]} Nd7 {[%emt 0:00:07]} 28. Be6 {[%emt 0:02:07]} Re8 {[%emt 0:00:06]} 29. Bf7 {[%emt 0:00:05]} Rh8 {[%emt 0:00:03]} 30. Be6 {[%emt 0:25:16]} 1/2-1/2

[Event "51st La Roda Open 2025"]
[Site "La Roda"]
[Date "2025.04.17"]
[Round "5.13"]
[White "Redondo Flores, David"]
[Black "Santos, Antonio P"]
[Result "0-1"]
[Annotator "RC"]
[ECO "B33"]
[WhiteElo "2009"]
[BlackElo "2152"]
[PlyCount "104"]
[EventDate "2025.04.15"]
[EventType "swiss"]
[EventCountry "ESP"]
[SourceTitle "playchess.com"]
[Source "ChessBase"]
[SourceQuality "1"]
[TimeControl "5400+30"]

1. e4 {[%emt 0:00:03]} c5 {[%emt 0:00:08]} 2. Nf3 {[%emt 0:00:11]} Nc6 {[%emt 0:00:09]} 3. d4 {[%emt 0:00:06]} cxd4 {[%emt 0:00:09]} 4. Nxd4 {[%emt 0:00:05]} e5 {[%emt 0:00:12]} 5. Nb5 {[%emt 0:00:14]} d6 {[%emt 0:00:10]} 6. a4 {[%emt 0:01:47]} Be7 {[%emt 0:00:51]} 7. N1c3 {[%emt 0:01:15]} a6 {[%emt 0:04:22]} 8. Na3 {[%emt 0:00:16]} Nf6 {[%emt 0:00:09]} 9. Bg5 {[%emt 0:03:58]} O-O {[%emt 0:00:24]} 10. Bxf6 {[%emt 0:01:07]} Bxf6 {[%emt 0:09:47]} 11. Nc4 {[%emt 0:03:40]} Be6 {[%emt 0:28:38]} 12. Qxd6 {[%emt 0:10:19]} Nd4 {[%emt 0:11:28]} 13. Qxd8 {[%emt 0:18:25]} Rfxd8 {[%emt 0:00:10]} 14. O-O-O {[%emt 0:01:15]} b5 {[%emt 0:00:33]} 15. Nb6 {[%emt 0:03:43]} Rab8 {[%emt 0:00:13]} 16. Ncd5 {[%emt 0:04:24]} Bg5+ {[%emt 0:01:14]} 17. Kb1 {[%emt 0:01:26]} bxa4 {[%emt 0:00:57]} 18. h4 {[%emt 0:05:25]} Bh6 {[%emt 0:00:15]} 19. Bc4 {[%emt 0:01:34]} Nb5 {[%emt 0:05:33]} 20. Ka1 {[%emt 0:16:55]} a3 {[%emt 0:01:45]} 21. Ne7+ {[%emt 0:05:17]} Kf8 {[%emt 0:00:18]} 22. Nc6 {[%emt 0:00:06]} axb2+ {[%emt 0:00:45]} 23. Kxb2 {[%emt 0:00:52]} Nd6 {[%emt 0:19:52]} 24. Nxb8 {[%emt 0:03:27]} Nxc4+ {[%emt 0:00:15]} 25. Kc3 {[%emt 0:03:48]} Rxb8 {[%emt 0:00:15]} 26. Nd7+ {[%emt 0:00:16]} Bxd7 {[%emt 0:00:14]} 27. Rxd7 {[%emt 0:00:07]} Rc8 {[%emt 0:05:10]} 28. Kb4 {[%emt 0:03:00]} Bd2+ {[%emt 0:00:14]} 29. Kb3 {[%emt 0:01:11]} Ke8 {[%emt 0:00:26]} 30. Rd5 {[%emt 0:03:52]} Na5+ {[%emt 0:03:01]} 31. Kb2 {[%emt 0:01:42]} Bc3+ {[%emt 0:01:22]} 32. Kc1 {[%emt 0:01:24]} Nc6 {[%emt 0:03:56]} 33. Rh3 {[%emt 0:00:27]} Bd4 {[%emt 0:00:19]} 34. Rb3 {[%emt 0:03:44]} a5 {[%emt 0:03:21]} 35. c3 {[%emt 0:01:17]} Bxf2 {[%emt 0:00:40]} 36. h5 {[%emt 0:00:03]} Rc7 {[%emt 0:00:22]} 37. Kb2 {[%emt 0:00:50]} Ke7 {[%emt 0:00:09]} 38. Rdb5 {[%emt 0:00:52]} Kd6 {[%emt 0:00:26]} 39. Rb7 {[%emt 0:00:37]} g6 {[%emt 0:00:31]} 40. R3b5 {[%emt 0:00:25]} Rxb7 {[%emt 0:00:27]} 41. Rxb7 {[%emt 0:00:01]} Ne7 {[%emt 0:00:23]} 42. Kb3 {[%emt 0:00:34]} f5 {[%emt 0:00:22]} 43. hxg6 {[%emt 0:00:32]} hxg6 {[%emt 0:00:01]} 44. exf5 {[%emt 0:00:56]} gxf5 {[%emt 0:00:02]} 45. Kc4 {[%emt 0:00:13]} e4 {[%emt 0:00:28]} 46. Rb5 {[%emt 0:00:20]} Nc6 {[%emt 0:01:35]} 47. Rxf5 {[%emt 0:00:15]} Ne5+ {[%emt 0:00:06]} 48. Kb3 {[%emt 0:00:54]} e3 {[%emt 0:00:08]} 49. Rf6+ {[%emt 0:01:17]} Ke7 {[%emt 0:00:31]} 50. Rf5 {[%emt 0:00:28]} Ke6 {[%emt 0:00:09]} 51. Rh5 {[%emt 0:00:32]} e2 {[%emt 0:00:17]} 52. Rh6+ {[%emt 0:00:29]} Kd5 {[%emt 0:00:43]} 0-1

[Event "51st La Roda Open 2025"]
[Site "La Roda"]
[Date "2025.04.17"]
[Round "5.14"]
[White "Rodriguez Garcia, Manuel Francisco"]
[Black "Martinez Herranz, Francisco Jose"]
[Result "1/2-1/2"]
[Annotator "NA RC"]
[ECO "B40"]
[WhiteElo "2131"]
[BlackElo "2050"]
[PlyCount "46"]
[EventDate "2025.04.15"]
[EventType "swiss"]
[EventCountry "ESP"]
[SourceTitle "playchess.com"]
[Source "ChessBase"]
[SourceQuality "1"]
[TimeControl "5400+30"]

1. c4 {[%emt 0:01:33]} e6 {[%emt 0:02:04]} 2. e4 {[%emt 0:05:03]} c5 {[%emt 0:00:44]} 3. Nc3 {[%emt 0:00:21]} Nc6 {[%emt 0:00:10]} 4. Nf3 {[%emt 0:13:23]} Nd4 {[%emt 0:05:41]} 5. Nxd4 {[%emt 0:15:20]} cxd4 {[%emt 0:00:05]} 6. Ne2 {[%emt 0:00:03]} Nf6 {[%emt 0:00:58]} 7. d3 {[%emt 0:11:14]} e5 {[%emt 0:01:36]} 8. Ng3 {[%emt 0:02:13]} h5 {[%emt 0:03:24]} 9. h4 {[%emt 0:02:12]} g6 {[%emt 0:02:59]} 10. Be2 {[%emt 0:01:33]} Be7 {[%emt 0:00:53]} 11. Bg5 {[%emt 0:04:49]} d6 {[%emt 0:01:02]} 12. Qd2 {[%emt 0:07:43]} a5 {[%emt 0:07:15]} 13. Bd1 {[%emt 0:03:01]} Bd7 {[%emt 0:03:51]} 14. Ne2 {[%emt 0:03:55]} Bc6 {[%emt 0:05:48]} 15. Ng1 {[%emt 0:06:23]} Nd7 {[%emt 0:01:10]} 16. Bxe7 {[%emt 0:02:45]} Qxe7 {[%emt 0:00:52]} 17. Qg5 {[%emt 0:00:34]} Nc5 {[%emt 0:00:20]} 18. Be2 {[%emt 0:01:03]} b5 {[%emt 0:01:07]} 19. cxb5 {[%emt 0:02:20]} Bxb5 {[%emt 0:00:04]} 20. Rd1 {[%emt 0:00:03]} Ne6 {[%emt 0:04:07]} 21. Qd2 {[%emt 0:03:01]} O-O {[%emt 0:02:08]} 22. Nf3 {[%emt 0:00:24]} Rfc8 {[%emt 0:03:10]} 23. O-O {[%emt 0:00:18]} a4 {[%emt 0:03:38]} 1/2-1/2

[Event "51st La Roda Open 2025"]
[Site "La Roda"]
[Date "2025.04.17"]
[Round "5.15"]
[White "Rodriguez Rivera, Pedro"]
[Black "Juan Lepp, Jaime Boris"]
[Result "1/2-1/2"]
[Annotator "NA RC"]
[ECO "D02"]
[WhiteElo "2127"]
[BlackElo "2015"]
[PlyCount "97"]
[EventDate "2025.04.15"]
[EventType "swiss"]
[EventCountry "ESP"]
[SourceTitle "playchess.com"]
[Source "ChessBase"]
[SourceQuality "1"]
[TimeControl "5400+30"]

1. d4 {[%emt 0:00:06]} d5 {[%emt 0:00:22]} 2. Bf4 {[%emt 0:00:08]} e6 {[%emt 0:00:32]} 3. e3 {[%emt 0:00:04]} Nf6 {[%emt 0:00:11]} 4. Nd2 {[%emt 0:00:23]} Bd6 {[%emt 0:00:16]} 5. Bxd6 {[%emt 0:00:02]} Qxd6 {[%emt 0:00:29]} 6. Ngf3 {[%emt 0:00:12]} Nbd7 {[%emt 0:02:20]} 7. c4 {[%emt 0:00:28]} O-O {[%emt 0:10:35]} 8. cxd5 {[%emt 0:01:25]} exd5 {[%emt 0:00:21]} 9. Qc2 {[%emt 0:03:01]} Re8 {[%emt 0:00:39]} 10. Rc1 {[%emt 0:00:59]} c6 {[%emt 0:00:24]} 11. Bd3 {[%emt 0:00:03]} Nf8 {[%emt 0:02:37]} 12. O-O {[%emt 0:01:25]} Ne6 {[%emt 0:04:22]} 13. Nb3 {[%emt 0:02:31]} h6 {[%emt 0:03:38]} 14. Ne5 {[%emt 0:04:31]} a5 {[%emt 0:08:07]} 15. a4 {[%emt 0:06:56]} Qb4 {[%emt 0:07:07]} 16. Qc3 {[%emt 0:06:07]} Qb6 {[%emt 0:08:19]} 17. Rc2 {[%emt 0:08:21]} Nd7 {[%emt 0:05:48]} 18. Nf3 {[%emt 0:02:08]} Ng5 {[%emt 0:04:19]} 19. Nxg5 {[%emt 0:07:03]} hxg5 {[%emt 0:00:03]} 20. Bf5 {[%emt 0:11:19]} Nf6 {[%emt 0:01:03]} 21. Bxc8 {[%emt 0:01:45]} Ne4 {[%emt 0:00:18]} 22. Qd3 {[%emt 0:00:14]} Raxc8 {[%emt 0:00:18]} 23. Nc5 {[%emt 0:02:39]} Nxc5 {[%emt 0:04:28]} 24. Rxc5 {[%emt 0:00:02]} Qd8 {[%emt 0:02:14]} 25. Rfc1 {[%emt 0:02:18]} Ra8 {[%emt 0:00:44]} 26. h3 {[%emt 0:02:14]} Re6 {[%emt 0:02:03]} 27. f3 {[%emt 0:01:56]} Rd6 {[%emt 0:02:36]} 28. Rd1 {[%emt 0:01:47]} Qb6 {[%emt 0:01:06]} 29. b3 {[%emt 0:00:56]} Re8 {[%emt 0:04:24]} 30. Qc3 {[%emt 0:02:49]} Rde6 {[%emt 0:01:46]} 31. Rd3 {[%emt 0:01:13]} Qb4 {[%emt 0:05:02]} 32. Kf2 {[%emt 0:06:02]} Qxc3 {[%emt 0:02:28]} 33. Rdxc3 {[%emt 0:00:02]} Ra8 {[%emt 0:00:12]} 34. e4 {[%emt 0:00:48]} dxe4 {[%emt 0:01:10]} 35. Rxg5 {[%emt 0:00:03]} exf3 {[%emt 0:00:29]} 36. gxf3 {[%emt 0:01:14]} Rd6 {[%emt 0:01:06]} 37. Ke3 {[%emt 0:04:43]} Re8+ {[%emt 0:02:49]} 38. Re5 {[%emt 0:02:02]} Rxe5+ {[%emt 0:01:52]} 39. dxe5 {[%emt 0:00:01]} Rd5 {[%emt 0:00:08]} 40. f4 {[%emt 0:01:50]} Kf8 {[%emt 0:00:32]} 41. Ke4 {[%emt 0:00:14]} Rd1 {[%emt 0:01:47]} 42. f5 {[%emt 0:00:41]} Rf1 {[%emt 0:06:54]} 43. Rc5 {[%emt 0:03:38]} Rb1 {[%emt 0:00:34]} 44. Rc3 {[%emt 0:02:19]} Rf1 {[%emt 0:00:05]} 45. Rd3 {[%emt 0:02:00]} Ke8 {[%emt 0:00:53]} 46. Rg3 {[%emt 0:00:02]} Kf8 {[%emt 0:00:37]} 47. Rd3 {[%emt 0:02:56]} Ke8 {[%emt 0:00:03]} 48. Rg3 {[%emt 0:01:00]} Kf8 {[%emt 0:00:03]} 49. Rd3 {[%emt 0:01:25]} 1/2-1/2

[Event "51st La Roda Open 2025"]
[Site "La Roda"]
[Date "2025.04.17"]
[Round "5.16"]
[White "Abdsattar, Alisher"]
[Black "Tieres, Cristiano"]
[Result "1-0"]
[Annotator "NA RC"]
[ECO "B76"]
[WhiteElo "2126"]
[BlackElo "1945"]
[PlyCount "77"]
[EventDate "2025.04.15"]
[EventType "swiss"]
[EventCountry "ESP"]
[SourceTitle "playchess.com"]
[Source "ChessBase"]
[SourceQuality "1"]
[TimeControl "5400+30"]

1. e4 {[%emt 0:00:03]} c5 {[%emt 0:02:50]} 2. Nf3 {[%emt 0:00:03]} d6 {[%emt 0:00:04]} 3. d4 {[%emt 0:00:03]} cxd4 {[%emt 0:00:04]} 4. Nxd4 {[%emt 0:00:08]} Nf6 {[%emt 0:00:05]} 5. Nc3 {[%emt 0:00:01]} g6 {[%emt 0:00:15]} 6. Be3 {[%emt 0:00:02]} Bg7 {[%emt 0:00:07]} 7. f3 {[%emt 0:00:04]} O-O {[%emt 0:00:04]} 8. Qd2 {[%emt 0:00:03]} Nc6 {[%emt 0:00:03]} 9. O-O-O {[%emt 0:00:05]} d5 {[%emt 0:00:09]} 10. exd5 {[%emt 0:00:03]} Nxd5 {[%emt 0:00:04]} 11. Nxc6 {[%emt 0:00:04]} bxc6 {[%emt 0:00:05]} 12. Bd4 {[%emt 0:00:02]} Bxd4 {[%emt 0:01:08]} 13. Qxd4 {[%emt 0:00:04]} Qb6 {[%emt 0:00:08]} 14. Na4 {[%emt 0:01:28]} Qa5 {[%emt 0:00:05]} 15. b3 {[%emt 0:04:27]} Be6 {[%emt 0:00:06]} 16. Qc5 {[%emt 0:08:47]} Qc7 {[%emt 0:00:06]} 17. Bc4 {[%emt 0:04:01]} Rfd8 {[%emt 0:00:16]} 18. Rd4 {[%emt 0:15:33]} Nf4 {[%emt 0:25:55]} 19. g3 {[%emt 0:10:29]} Rxd4 {[%emt 0:06:06]} 20. Qxd4 {[%emt 0:00:01]} Bxc4 {[%emt 0:00:49]} 21. Qxf4 {[%emt 0:02:10]} Qxf4+ {[%emt 0:00:34]} 22. gxf4 {[%emt 0:00:12]} Be2 {[%emt 0:00:35]} 23. Re1 {[%emt 0:00:05]} Bxf3 {[%emt 0:00:47]} 24. Rxe7 {[%emt 0:00:03]} Kf8 {[%emt 0:01:13]} 25. Rc7 {[%emt 0:04:05]} h5 {[%emt 0:01:13]} 26. Nc5 {[%emt 0:13:51]} Rd8 {[%emt 0:09:05]} 27. Nd3 {[%emt 0:11:51]} a5 {[%emt 0:04:08]} 28. Ra7 {[%emt 0:06:00]} Rd5 {[%emt 0:02:48]} 29. Ne5 {[%emt 0:03:51]} Rd1+ {[%emt 0:00:30]} 30. Kb2 {[%emt 0:00:30]} Bd5 {[%emt 0:00:30]} 31. Rxa5 {[%emt 0:00:30]} Rh1 {[%emt 0:00:16]} 32. a4 {[%emt 0:00:00]} Rxh2 {[%emt 0:00:09]} 33. Rxd5 {[%emt 0:03:21]} cxd5 {[%emt 0:00:47]} 34. a5 {[%emt 0:01:22]} d4 {[%emt 0:01:51]} 35. a6 {[%emt 0:00:47]} d3 {[%emt 0:00:05]} 36. Nxd3 {[%emt 0:00:07]} Re2 {[%emt 0:00:09]} 37. Ne5 {[%emt 0:00:01]} Rd2 {[%emt 0:00:14]} 38. a7 {[%emt 0:00:20]} Rd8 {[%emt 0:00:30]} 39. Nd7+ {[%emt 0:00:30]} 1-0